{"text_format":"1","workbook":"xlsx","n_sheets":13,"sheets":["1. Forside","2. Samlet prisloft","3. Driftsomkostninger","4. Historiske investeringer","5. Gennemførte investeringer","6. Korrektion investeringer","7. Planlagte investeringer","8. 1-1 omkostninger","9. Miljø- og servicemål","10. Klimatilpasning","11. Nettofinansielle poster","12. Over- eller underdækning","13. Kontrol med indtægtsrammen"],"not_rendered":{"charts":0,"images":0,"macros":1,"external_links":0,"defined_names":0,"comments":0,"pivot_tables":0},"unopened":[],"bounds":{"document_bytes":16777216,"sheet_cells":100000,"rows_first":2000,"rows_last":500,"rows_between":2000,"halvings":0,"cell_chars":16384,"cell_head_chars":4096},"cells_cut":0,"cells_raw":0,"read":"whole","date_system":"1900"}

{"sheet":"1. Forside","index":0,"n_rows":27,"n_cols":4,"rows_kept":27,"cut":false,"hidden":false,"merged":[[21,3,21,5],[20,3,20,5],[19,3,19,5],[18,3,18,5],[7,3,7,5],[12,3,12,5],[15,3,15,5],[16,3,16,5],[17,3,17,5],[26,3,26,5],[25,3,25,5],[24,3,24,5],[23,3,23,5],[22,3,22,5]]}
["Langeland Spildevand A/S"]
[]
[]
[]
[]
[]
[]
[null,null,null,"Bilag A"]
[]
[]
[]
[]
[null,null,null,"Indholdsfortegnelse"]
[]
[]
[null,null,"Fane nr. 2","Samlet prisloft "]
[null,null,"Fane nr. 3","Driftsomkostninger"]
[null,null,"Fane nr. 4","Historiske investeringer "]
[null,null,"Fane nr. 5","Gennemførte investeringer"]
[null,null,"Fane nr. 6","Korrektion investeringer"]
[null,null,"Fane nr. 7","Planlagte investeringer"]
[null,null,"Fane nr. 8","1:1 omkostninger"]
[null,null,"Fane nr. 9","Miljø- og servicemål"]
[null,null,"Fane nr. 10","Klimatilpasning"]
[null,null,"Fane nr. 11","Nettofinansielle poster"]
[null,null,"Fane nr. 12","Over- eller underdækning"]
[null,null,"Fane nr. 13","Kontrol med indtægtsrammen og oversigt over ekstraordinære effektiviseringsgevinster"]

{"sheet":"2. Samlet prisloft","index":1,"n_rows":38,"n_cols":6,"rows_kept":38,"cut":false,"hidden":false,"merged":[[3,1,3,5]]}
[{"$f":"'1. Forside'!A1","v":"Langeland Spildevand A/S"}]
[]
[]
[null,"Fane 2. Samlet prisloft for 2015"]
[]
[null,"Driftsomkostninger"]
[null,"Driftsomkostninger i prisloftet for 2014",{"$f":"'3. Driftsomkostninger'!C20","v":12463182.970000001},"kr."]
[null,"Bortfald af væsentlige omkostninger",{"$f":"-'3. Driftsomkostninger'!C16","v":0},"kr."]
[null,"Korrektion for prisudviklingen 2014-2015",{"$f":"'3. Driftsomkostninger'!C22","v":9970.5463760000002},"kr."]
[null,"Forhøjelse til effektivt niveau iht. benchmarkingen",{"$f":"'3. Driftsomkostninger'!C28","v":0},"kr."]
[null,"Korrektion for generelt effektiviseringskrav",{"$f":"-'3. Driftsomkostninger'!C34","v":-54838.005068000006},"kr."]
[null,"Korrektion for individuelt effektiviseringskrav",{"$f":"-'3. Driftsomkostninger'!C43","v":0},"kr."]
[null,"Driftsomkostninger i alt",{"$f":"SUM(C7:C12)","v":12418315.511307999},"kr.",{"$f":"C13","v":12418315.511307999}," kr."]
[null,"Investeringer"]
[null,"Tillæg for historiske investeringer",{"$f":"'4. Historiske investeringer'!C9","v":13423806.495361324},"kr."]
[null,"Tillæg for gennemførte investeringer i 2011-2013",{"$f":"'5. Gennemførte investeringer'!F59","v":1018356.8},"kr."]
[null,"Korrektion af tillæg for planlagte investeringer vedrørende 2013  ",{"$f":"'6. Korrektion investeringer'!C10","v":-392196.55999999994},"kr."]
[null,"Tillæg for planlagte investeringer i 2014 og 2015",{"$f":"'7. Planlagte investeringer'!F102","v":1349966.6666666665},"kr."]
[null,"Investeringstillæg i alt",{"$f":"SUM(C15:C18)","v":15399933.402027991},"kr.",{"$f":"C19","v":15399933.402027991}," kr."]
[null,"Øvrige omkostninger mv."]
[null,"Tillæg for 1:1 omkostninger i 2015",{"$f":"'8. 1-1 omkostninger'!C10","v":459000},"kr."]
[null,"Tillæg vedr. revisorerklæringer og DANVA/FVD-kontingent",{"$f":"'8. 1-1 omkostninger'!C18","v":36000},"kr."]
[null,"Korrektion ift. faktiske 1:1 omkostninger i 2013",{"$f":"'8. 1-1 omkostninger'!C24","v":-230744},"kr."]
[null,"Tillæg for driftsomkostninger til miljø- og servicemål i 2015",{"$f":"'9. Miljø- og servicemål'!C8","v":25000},"kr."]
[null,"Korrektion ift. faktiske driftsomkostninger til miljø- og servicemål i 2013",{"$f":"'9. Miljø- og servicemål'!C15","v":0},"kr."]
[null,"Tillæg for driftsomkostninger til medfinansiering af klimatilpasningsprojekter i 2015",{"$f":"'10. Klimatilpasning'!C9","v":0},"kr."]
[null,"Korrektion ift. faktiske omkostninger til medfinansiering af klimatilpasningsprojekter i 2013",{"$f":"'10. Klimatilpasning'!C16","v":0},"kr."]
[null,"Tillæg/fradrag for nettofinansielle poster i 2015",{"$f":"'11. Nettofinansielle poster'!C9","v":610000},"kr."]
[null,"Korrektion ift. faktiske nettofinansielle poster i 2013",{"$f":"'11. Nettofinansielle poster'!C16","v":242870},"kr."]
[null,"Øvrige omkostninger mv. i alt",{"$f":"SUM(C21:C29)","v":1142126},"kr.",{"$f":"C30","v":1142126}," kr."]
[null,"Historisk over- eller underdækning"]
[null,"Tillæg/fradrag for over- eller underdækning til og med 2010",{"$f":"'12. Over- eller underdækning'!C11","v":-802337.24867724872},"kr.",{"$f":"C32","v":-802337.24867724872}," kr."]
[null,"Korrektion i forhold til tidligere indtægtsramme "]
[null,"Korrektion for overholdelse af indtægtsramme i prisloft 2013",{"$f":"'13. Kontrol med indtægtsrammen'!E27","v":3875175.8939904571},"kr.",{"$f":"C34","v":3875175.8939904571}," kr."]
[null,"Samlet prisloft"]
[null,"Indtægtsramme i 2015 ",null,null,{"$f":"SUM(E13:E34)","v":32033213.558649197}," kr."]
[null,"Debiteret vandmængde i 2013",null,null,631320," m3"]
[null,"Prisloft 2015",null,null,{"$f":"E36/E37","v":50.740058225066839}," kr./m3"]

{"sheet":"3. Driftsomkostninger","index":2,"n_rows":43,"n_cols":4,"rows_kept":43,"cut":false,"hidden":false,"merged":[[3,1,3,3]]}
[{"$f":"'1. Forside'!A1","v":"Langeland Spildevand A/S"}]
[]
[]
[null,"Fane 3. Driftsomkostninger "]
[]
[null,"Driftsomkostningerne i prisloftet for 2014"]
[null,"Korrigerede driftsomkostninger i prisloftet for 2013 (DOiPL 2013)",12278998,"kr."]
[null,"Prisfremskrivning 1,5 pct.",{"$f":"0.015*SUM(C7:C7)","v":184184.97},"kr."]
[null,"Generelt effektiviseringskrav (0 pct.)",0,"kr."]
[null,"Individuelt effektiviseringskrav ",0,"kr."]
[null,"Driftsomkostningerne i prisloftet for 2014 (DOiPL 2014)",{"$f":"SUM(C7:C10)","v":12463182.970000001},"kr."]
[]
[]
[null,"Korrektion for forventet bortfald af væsentlige omkostninger"]
[null,"Selskabets indberettede bortfald af væsentlige omkostninger inden 2015",0,"kr."]
[null,"Korrektion for forventet bortfald ",{"$f":"SUM(C15:C15)","v":0},"kr."]
[]
[]
[null,"Korrektion for prisudviklingen fra 2014-2015"]
[null,"Driftsomkostningerne i prisloftet for 2014",{"$f":"C11-C16","v":12463182.970000001},"kr."]
[null,"Prisudvikling 2014 - 2015 ",0.08,"pct."]
[null,"Korrektion for prisudvikling",{"$f":"C20*(C21/100)","v":9970.5463760000002},"kr."]
[]
[]
[null,"Eventuel forhøjelse til effektivt niveau iht. benchmarkingen"]
[null,"Selskabets effektive driftsomkostninger iht. benchmarkingen",12373448,"kr."]
[null,"Selskabets pristalskorrigerede driftsomkostninger i 2015-niveau",{"$f":"C20+C22","v":12473153.516376},"kr."]
[null,"Eventuel forhøjelse til effektivt niveau",{"$f":"IF(C27>C26,0,C26-C27)","v":0},"kr."]
[]
[]
[null,"Korrektion for generelt effektiviseringskrav"]
[null,"Driftsomkostningerne i prisloftet for 2014",{"$f":"C20","v":12463182.970000001},"kr. "]
[null,"Generelt effektiviseringskrav ",0.44,"pct."]
[null,"Endeligt generelt effektiviseringskrav",{"$f":"C32*(C33/100)","v":54838.005068000006},"kr. "]
[]
[]
[null,"Korrektion for individuelt effektiviseringskrav"]
[null,"Rå effektiviseringspotentiale",89735,"kr."]
[null,"Effektiviseringspotentiale efter eventuel korrektion for særlige forhold",89735,"kr."]
[null,"Effektiviseringspotentiale efter forsigtighedshensyn",0,"kr."]
[null,"Effektiviseringspotentiale efter eventuel korrektion for sammensætning af signifikante costdrivere",0,"kr. "]
[null,"Umiddelbart effektiviseringskrav",{"$f":"C41/4","v":0},"kr."]
[null,"Endeligt individuelt effektiviseringskrav",{"$f":"IF(C42>0.05*C20,0.05*C20,IF(C42<0.01*C20,0,C42))","v":0},"kr. "]

{"sheet":"4. Historiske investeringer","index":3,"n_rows":9,"n_cols":4,"rows_kept":9,"cut":false,"hidden":false,"merged":[[3,1,3,2]]}
[{"$f":"'3. Driftsomkostninger'!A1","v":"Langeland Spildevand A/S"}]
[]
[]
[null,"Fane 4. Historiske investeringer "]
[]
[null,"Tillæg for historiske investeringer "]
[null,"Værdi af selskabets materielle anlægsaktiver pr. 1. januar 2010",523300503.28657681,"kr."]
[null,"Den årlige standardafskrivning på de materielle anlægsaktiver iht. POLKA",13423806.495361324,"kr."]
[null,"Tillæg i alt i 2015",{"$f":"C8","v":13423806.495361324},"kr."]

{"sheet":"5. Gennemførte investeringer","index":4,"n_rows":59,"n_cols":7,"rows_kept":59,"cut":false,"hidden":false,"merged":[[3,1,3,5],[6,5,6,6]]}
[{"$f":"'4. Historiske investeringer'!A1","v":"Langeland Spildevand A/S"}]
[]
[]
[null,"Fane 5. Gennemførte investeringer i 2010 - 2013 "]
[]
[null,"Tillæg for gennemførte investeringer i 2013"]
[null," Beskrivelse af investeringen   ","Årstal ","Std. levetid (år)   "," Anskaffelses-pris (kr.)","Afskrivning "]
[null,"Ledningsnet = Ø 200 mm",2013,75,3179862,{"$f":"E8/D8","v":42398.16},"kr."]
[null,"Stik",2013,75,187144,{"$f":"E9/D9","v":2495.2533333333336},"kr."]
[null,"Brønde",2013,75,772734,10303.120000000001,"kr."]
[null,"Tryksatte minipumpestationer (husstandssystemer)",2013,30,207053,6901.7666666666664,"kr."]
[null,"Ledningsnet = Ø 200 mm",2013,75,2934483,39126.44,"kr."]
[null,"Stik",2013,75,133611,1781.48,"kr."]
[null,"Brønde",2013,75,521720,6956.2666666666664,"kr."]
[null,"Tryksatte minipumpestationer (husstandssystemer)",2013,30,244318,8143.9333333333334,"kr."]
[null,"Ledningsnet = Ø 200 mm",2013,75,237354,3164.72,"kr."]
[null,"Stik",2013,75,15233,203.10666666666665,"kr."]
[null,"Brønde",2013,75,70024,933.65333333333331,"kr."]
[null,"Tryksatte minipumpestationer (husstandssystemer)",2013,30,22157,738.56666666666672,"kr."]
[null,"Ledningsnet = Ø 200 mm",2013,75,1756324,23417.653333333332,"kr."]
[null,"Stik",2013,75,124815,1664.2,"kr."]
[null,"Brønde",2013,75,682321,9097.6133333333328,"kr."]
[null,"Tryksatte minipumpestationer (husstandssystemer)",2013,30,71323,2377.4333333333334,"kr."]
[null,"Indløb med riste, SRO",2013,10,905824,90582.399999999994,"kr."]
[null,"Indløb med riste, Mek/EL",2013,20,14599,729.95,"kr."]
[null,"Ledningsnet = Ø 200 mm",2013,75,54276,723.68,"kr."]
[null,"Ø 200 mm < Ledningsnet = Ø 500 mm",2013,75,317088,4227.84,"kr."]
[null,"Ø 500 mm < Ledningsnet = Ø 800 mm",2013,75,1187445,15832.6,"kr."]
[null,"Stik",2013,75,101826,1357.68,"kr."]
[null,"Brønde",2013,75,497610,6634.8,"kr."]
[null,"Ledningsnet = Ø 200 mm",2013,75,1495330,19937.733333333334,"kr."]
[null,"Stik",2013,75,103354,1378.0533333333333,"kr."]
[null,"Brønde",2013,75,406802,5424.0266666666666,"kr."]
[null,"Tryksatte minipumpestationer (husstandssystemer)",2013,30,132293,4409.7666666666664,"kr."]
[null,"Ledningsnet = Ø 200 mm",2013,75,1042242,13896.56,"kr."]
[null,"Stik",2013,75,52455,699.4,"kr."]
[null,"Brønde",2013,75,187493,2499.9066666666668,"kr."]
[null,"Tryksatte minipumpestationer (husstandssystemer)",2013,30,80700,2690,"kr."]
[null,"Ledningsnet = Ø 200 mm",2013,75,1866297,24883.96,"kr."]
[null,"Stik",2013,75,134690,1795.8666666666666,"kr."]
[null,"Brønde",2013,75,345143,4601.9066666666668,"kr."]
[null,"Tryksatte minipumpestationer (husstandssystemer)",2013,30,235707,7856.9,"kr."]
[null,"Ledningsnet = Ø 200 mm",2013,75,6126,81.680000000000007,"kr."]
[null,"Stik",2013,75,12251,163.34666666666666,"kr."]
[null,"Brønde",2013,75,33487,446.49333333333334,"kr."]
[null,"Pumpestationer i brønde (< 6,25 m2), Mek/EL",2013,20,570591,28529.55,"kr."]
[null,"Pumpestationer i brønde (< 6,25 m2), SRO",2013,10,101891,10189.1,"kr."]
[null,"Ledningsnet = Ø 200 mm",2013,75,1655,22.066666666666666,"kr."]
[null,"Stik",2013,75,3311,44.146666666666668,"kr."]
[null,"Brønde",2013,75,9049,120.65333333333334,"kr."]
[null,"Strømpeforing = Ø 200 mm",2013,50,469676,9393.52,"kr."]
[null,"Strømpeforing Ø 200 mm < Ledningsnet = Ø 500 mm",2013,50,1069763,21395.26,"kr."]
[null,"Brønde",2013,50,440826,8816.52,"kr."]
[null,"Stik",2013,50,549563,10991.26,"kr."]
[null,"Stik",2013,75,166534,2220.4533333333334,"kr."]
[null,"Brønde",2013,75,44083,587.77333333333331,"kr."]
[null,"Tillæg for 2013 ",null,null,null,{"$f":"SUM(F8:F56)","v":462868.22000000003},"kr."]
[null,"Tillæg for 2010 - 2012",null,null,null,555488.58000000007,"kr."]
[null,"Samlet tillæg for gennemførte investeringer",null,null,null,{"$f":"F57+F58","v":1018356.8},"kr."]

{"sheet":"6. Korrektion investeringer","index":5,"n_rows":10,"n_cols":4,"rows_kept":10,"cut":false,"hidden":false,"merged":[[3,1,3,3]]}
[{"$f":"'5. Gennemførte investeringer'!A1","v":"Langeland Spildevand A/S"}]
[]
[]
[null,"Fane 6. Korrektion af tillæg for planlagte investeringer"]
[]
[null,"Korrektion af tillæg for planlagte investeringer vedr. 2013"]
[null,"Tillæg for planlagte investeringer i 2013 i prisloft 2013",285700,"kr."]
[null,"Tillæg for planlagte investeringer i 2013 i prisloft 2014",1032233,"kr."]
[null,"Selskabets faktiske afskrivninger på gennemførte investeringer i 2013",{"$f":"'5. Gennemførte investeringer'!F57","v":462868.22000000003},"kr."]
[null,"Korrektion af tillæg for planlagte investeringer vedr. 2013",{"$f":"C9-C7+C9-C8","v":-392196.55999999994},"kr."]

{"sheet":"7. Planlagte investeringer","index":6,"n_rows":102,"n_cols":7,"rows_kept":102,"cut":false,"hidden":false,"merged":[[6,5,6,6],[3,1,3,6]]}
[{"$f":"'6. Korrektion investeringer'!A1","v":"Langeland Spildevand A/S"}]
[]
[]
[null,"Fane 7. Planlagte investeringer "]
[]
[null,"Tillæg for planlagte investeringer i 2014 og 2015"]
[null,"Beskrivelse af investeringen   ","Årstal ","Std. levetid (år)   ","Anskaffelses-pris (kr.)   ","Afskrivning"]
[null,"Ledningsnet = Ø 200 mm",2014,75,50000,{"$f":"E8/D8","v":666.66666666666663},"kr."]
[null,"Brønde",2014,75,25000,{"$f":"E9/D9","v":333.33333333333331},"kr."]
[null,"Stik",2014,75,25000,{"$f":"E10/D10","v":333.33333333333331},"kr."]
[null,"Ledningsnet = Ø 200 mm",2014,75,50000,666.66666666666663,"kr."]
[null,"Brønde",2014,75,25000,333.33333333333331,"kr."]
[null,"Stik",2014,75,25000,333.33333333333331,"kr."]
[null,"Ledningsnet = Ø 200 mm",2014,75,1100000,14666.666666666666,"kr."]
[null,"Ø 800 mm < Ledningsnet = Ø 1000 mm",2014,75,400000,5333.333333333333,"kr."]
[null,"Brønde",2014,75,350000,4666.666666666667,"kr."]
[null,"Stik",2014,75,350000,4666.666666666667,"kr."]
[null,"Strømpeforing = Ø 200 mm",2014,50,200000,4000,"kr."]
[null,"Efterklaringstanke, SRO",2014,10,210000,21000,"kr."]
[null,"Efterklaringstanke, Mek/El",2014,20,200000,10000,"kr."]
[null,"Ledningsnet = Ø 200 mm",2014,75,180000,2400,"kr."]
[null,"Stik",2014,75,30000,400,"kr."]
[null,"Brønde",2014,75,30000,400,"kr."]
[null,"Tryksatte minipumpestationer (husstandssystemer)",2014,30,60000,2000,"kr."]
[null,"Ledningsnet = Ø 200 mm",2014,75,1200000,16000,"kr."]
[null,"Stik",2014,75,200000,2666.6666666666665,"kr."]
[null,"Brønde",2014,75,200000,2666.6666666666665,"kr."]
[null,"Tryksatte minipumpestationer (husstandssystemer)",2014,30,200000,6666.666666666667,"kr."]
[null,"Ledningsnet = Ø 200 mm",2014,75,85000,1133.3333333333333,"kr."]
[null,"Stik",2014,75,20000,266.66666666666669,"kr."]
[null,"Brønde",2014,75,20000,266.66666666666669,"kr."]
[null,"Tryksatte minipumpestationer (husstandssystemer)",2014,30,25000,833.33333333333337,"kr."]
[null,"Ledningsnet = Ø 200 mm",2014,75,115000,1533.3333333333333,"kr."]
[null,"Brønde",2014,75,30000,400,"kr."]
[null,"Stik",2014,75,30000,400,"kr."]
[null,"Tryksatte minipumpestationer (husstandssystemer)",2014,30,50000,1666.6666666666667,"kr."]
[null,"Ledningsnet = Ø 200 mm",2014,75,85000,1133.3333333333333,"kr."]
[null,"Brønde",2014,75,20000,266.66666666666669,"kr."]
[null,"Stik",2014,75,20000,266.66666666666669,"kr."]
[null,"Tryksatte minipumpestationer (husstandssystemer)",2014,30,25000,833.33333333333337,"kr."]
[null,"Arbejdsplads",2014,5,100000,20000,"kr."]
[null,"Beluftningstanke, SRO",2014,10,275000,27500,"kr."]
[null,"Arbejdsplads",2014,5,750000,150000,"kr."]
[null,"Arbejdsplads",2014,5,786000,157200,"kr."]
[null,"Pumpestationer i brønde (< 6,25 m2), Mek/EL",2014,20,300000,15000,"kr."]
[null,"Pumpestationer i brønde (< 6,25 m2), SRO",2014,10,295000,29500,"kr."]
[null,"Beluftningstanke, Mek/EL",2014,20,400000,20000,"kr."]
[null,"Forsinkelsesbassiner, lukkede uden automatisk rensning og SRO Miljøklasse B (mindre end 1.000 m3)",2014,50,250000,5000,"kr."]
[null,"Ledningsnet = Ø 200 mm",2014,75,5000000,66666.666666666672,"kr."]
[null,"Ø 200 mm < Ledningsnet = Ø 500 mm",2014,75,2000000,26666.666666666668,"kr."]
[null,"Stik",2014,75,2000000,26666.666666666668,"kr."]
[null,"Brønde",2014,75,1700000,22666.666666666668,"kr."]
[null,"Tryksatte minipumpestationer (husstandssystemer)",2014,30,100000,3333.3333333333335,"kr."]
[null,"Mindre renseanlæg < 5.000 PE uden mulighed for opdeling",2014,40,2500000,62500,"kr."]
[null,"Ledningsnet = Ø 200 mm",2014,75,500000,6666.666666666667,"kr."]
[null,"Ø 200 mm < Ledningsnet = Ø 500 mm",2014,75,500000,6666.666666666667,"kr."]
[null,"Brønde",2014,75,300000,4000,"kr."]
[null,"Stik",2014,75,400000,5333.333333333333,"kr."]
[null,"Strømpeforing Ø 200 mm < Ledningsnet = Ø 500 mm",2014,50,1500000,{"$f":"E59/D59","v":30000},"kr."]
[null,"Strømpeforing Ø 200 mm < Ledningsnet = Ø 500 mm",2014,50,1500000,30000,"kr."]
[null,"Jordbassin Klasse B",2014,50,750000,15000,"kr."]
[null,"Ledningsnet = Ø 200 mm",2015,75,300000,4000,"kr."]
[null,"Jordbassin Klasse A",2015,50,300000,6000,"kr."]
[null,"Pumpestationer i brønde (< 6,25 m2), Mek/EL",2015,20,50000,2500,"kr."]
[null,"Beluftningstanke, Konstruktioner",2015,60,1000000,16666.666666666668,"kr."]
[null,"Beluftningstanke, Mek/EL",2015,20,900000,45000,"kr."]
[null,"Beluftningstanke, SRO",2015,10,100000,10000,"kr."]
[null,"Efterklaringstanke, Mek/El",2015,20,100000,5000,"kr."]
[null,"Efterklaringstanke, SRO",2015,10,50000,5000,"kr."]
[null,"Ledningsnet = Ø 200 mm",2015,75,2500000,33333.333333333336,"kr."]
[null,"Brønde",2015,75,300000,4000,"kr."]
[null,"Stik",2015,75,300000,4000,"kr."]
[null,"Tryksatte minipumpestationer (husstandssystemer)",2015,30,200000,6666.666666666667,"kr."]
[null,"Ledningsnet = Ø 200 mm",2015,75,4800000,64000,"kr."]
[null,"Brønde",2015,75,540000,7200,"kr."]
[null,"Stik",2015,75,540000,7200,"kr."]
[null,"Tryksatte minipumpestationer (husstandssystemer)",2015,30,120000,4000,"kr."]
[null,"Ø 200 mm < Ledningsnet = Ø 500 mm",2015,75,3800000,50666.666666666664,"kr."]
[null,"Brønde",2015,75,500000,6666.666666666667,"kr."]
[null,"Stik",2015,75,500000,6666.666666666667,"kr."]
[null,"Tryksatte minipumpestationer (husstandssystemer)",2015,30,200000,6666.666666666667,"kr."]
[null,"Ledningsnet = Ø 200 mm",2015,75,1400000,18666.666666666668,"kr."]
[null,"Brønde",2015,75,400000,5333.333333333333,"kr."]
[null,"Stik",2015,75,400000,5333.333333333333,"kr."]
[null,"Ledningsnet = Ø 200 mm",2015,75,1200000,16000,"kr."]
[null,"Ø 200 mm < Ledningsnet = Ø 500 mm",2015,75,1500000,20000,"kr."]
[null,"Brønde",2015,75,600000,8000,"kr."]
[null,"Stik",2015,75,600000,8000,"kr."]
[null,"Ledningsnet = Ø 200 mm",2015,75,100000,1333.3333333333333,"kr."]
[null,"Brønde",2015,75,100000,1333.3333333333333,"kr."]
[null,"Ledningsnet = Ø 200 mm",2015,75,100000,1333.3333333333333,"kr."]
[null,"Tryksatte minipumpestationer (husstandssystemer)",2015,30,100000,3333.3333333333335,"kr."]
[null,"Ledningsnet = Ø 200 mm",2015,75,1100000,14666.666666666666,"kr."]
[null,"Brønde",2015,75,300000,4000,"kr."]
[null,"Tryksatte minipumpestationer (husstandssystemer)",2015,30,100000,3333.3333333333335,"kr."]
[null,"Pumpestationer i brønde (< 6,25 m2), Mek/EL",2015,20,300000,15000,"kr."]
[null,"Strømpeforing Ø 200 mm < Ledningsnet = Ø 500 mm",2015,50,1500000,30000,"kr."]
[null,"Strømpeforing = Ø 200 mm",2015,50,1500000,30000,"kr."]
[null,"Pumpestationer i brønde (< 6,25 m2), SRO",2015,10,295000,29500,"kr."]
[null,"Tillæg for 2014",null,null,null,{"$f":"SUMIF(C8:C99,\"2014\",F8:F99)","v":839566.66666666651},"kr."]
[null,"Tillæg for 2015",null,null,null,{"$f":"SUMIF(C8:C99,\"2015\",F8:F99)","v":510399.99999999994},"kr."]
[null,"Tillæg i alt",null,null,null,{"$f":"F100+F101","v":1349966.6666666665},"kr."]

{"sheet":"8. 1-1 omkostninger","index":7,"n_rows":24,"n_cols":4,"rows_kept":24,"cut":false,"hidden":false,"merged":[[3,1,3,3],[14,1,14,3],[20,1,20,3]]}
[{"$f":"'7. Planlagte investeringer'!A1","v":"Langeland Spildevand A/S"}]
[]
[]
[null,"Fane 8. 1:1 omkostninger"]
[]
[null,"Tillæg for budgetterede 1:1 omkostninger i 2015"]
[null,"Betaling til Forsyningssekretariatet",33000,"kr."]
[null,"Spildevandsafgift",396000,"kr."]
[null,"Ejendomsskatter",30000,"kr."]
[null,"Tillæg i alt ",{"$f":"SUM(C7:C9)","v":459000},"kr."]
[]
[]
[]
[]
[null,"Tillæg for budgetterede nødvendige udgifter til revisorerklæringer samt ordinært medlemskab af DANVA og FVD i 2015"]
[null,"Betaling for ordinært medlemskab af DANVA/FVD",19000,"kr."]
[null,"Betaling for revisorerklæringer",17000,"kr."]
[null,"Tillæg i alt ",{"$f":"SUM(C16:C17)","v":36000},"kr."]
[]
[]
[null,"Korrektion af tillæg for faktiske 1:1 omkostninger (inkl. revisorerklæringer og ordinært medlemskab af DANVA/FVD) i 2013"]
[null,"Selskabets faktiske 1:1 omkostninger mv. i 2013, jf. reguleringsregnskabet",526256,"kr."]
[null,"Tillæg for budgetterede 1:1 omkostninger mv. i prisloft 2013",757000,"kr."]
[null,"Korrektion af tillæg for budgetterede 1:1 omkostninger mv. i 2013",{"$f":"C22-C23","v":-230744},"kr."]

{"sheet":"9. Miljø- og servicemål","index":8,"n_rows":15,"n_cols":4,"rows_kept":15,"cut":false,"hidden":false,"merged":[[3,1,3,3]]}
[{"$f":"'8. 1-1 omkostninger'!A1","v":"Langeland Spildevand A/S"}]
[]
[]
[null,"Fane 9. Driftsomkostninger til miljø- og servicemål "]
[]
[null,"Tillæg for budgetterede driftsomkostninger til miljø- og servicemål i 2015"]
[null,"Drift af RBU - SRO",25000,"kr."]
[null,"Tillæg i alt",{"$f":"SUM(C7:C7)","v":25000},"kr."]
[]
[]
[]
[null,"Korrektion af tillæg for faktiske driftsomkostninger til miljø- og servicemål i 2013"]
[null,"Selskabets faktiske driftsomkostninger til miljø- og servicemål i 2013, jf. reguleringsregnskabet",0,"kr."]
[null,"Tillæg for budgetterede driftsomkostninger til miljø- og servicemål i prisloft 2013",0,"kr."]
[null,"Korrektion af tillæg for budgetterede driftsomkostninger til miljø- og servicemål i 2013",{"$f":"C13-C14","v":0},"kr."]

{"sheet":"10. Klimatilpasning","index":9,"n_rows":16,"n_cols":4,"rows_kept":16,"cut":false,"hidden":false,"merged":[[3,1,3,3],[12,1,12,3],[6,1,6,3]]}
[{"$f":"'9. Miljø- og servicemål'!A1","v":"Langeland Spildevand A/S"}]
[]
[]
[null,"Fane 10. Medfinansiering af klimatilpasningsprojekter"]
[]
[]
[null,"Tillæg for budgetterede omkostninger til medfinansiering af klimatilpasningsprojekter i 2015"]
[null,null,0,"kr."]
[null,"Tillæg i alt",{"$f":" SUM(C8:C8)","v":0},"kr."]
[]
[]
[]
[null,"Korrektion af tillæg for faktiske omkostninger til medfinansiering af klimatilpasningsprojekter i 2013"]
[null,"Selskabets faktiske driftsomkostninger til klimatilpasningsprojekter i 2013, jf. reguleringsregnskabet",0,"kr."]
[null,"Tillæg for budgetterede driftsomkostninger til klimatilpasningsprojekter i prisloft 2013",0,"kr."]
[null,"Korrektion af tillæg for budgetterede omkostninger til klimatilpasningsprojekter i 2013",{"$f":"C14-C15","v":0},"kr."]

{"sheet":"11. Nettofinansielle poster","index":10,"n_rows":16,"n_cols":4,"rows_kept":16,"cut":false,"hidden":false,"merged":[[3,1,3,3]]}
[{"$f":"'10. Klimatilpasning'!A1","v":"Langeland Spildevand A/S"}]
[]
[]
[null,"Fane 11. Nettofinansielle poster"]
[]
[null,"Tillæg for budgetterede nettofinansielle poster i 2015"]
[null,"Budgetterede renteudgifter og gebyrer i 2015",750000,"kr."]
[null,"Budgetterede renteindtægter i 2015",140000,"kr."]
[null,"Tillæg/fradrag i alt",{"$f":"C7-C8","v":610000},"kr."]
[]
[]
[]
[null,"Korrektion af tillæg for faktiske nettofinansielle poster i 2013"]
[null,"Selskabets faktiske nettofinansielle poster i 2013, jf. reguleringsregnskabet",713370,"kr."]
[null,"Tillæg for budgetterede nettofinansielle poster i prisloft 2013",470500,"kr."]
[null,"Korrektion af tillæg for budgetterede nettofinansielle poster i 2013",{"$f":"C14-C15","v":242870},"kr."]

{"sheet":"12. Over- eller underdækning","index":11,"n_rows":11,"n_cols":4,"rows_kept":11,"cut":false,"hidden":false,"merged":[[3,1,3,3]]}
[{"$f":"'11. Nettofinansielle poster'!A1","v":"Langeland Spildevand A/S"}]
[]
[]
[null,"Fane 12. Over- eller underdækning til og med 2010"]
[]
[null,"Tillæg/fradrag for over- eller underdækning til og med 2010"]
[null,"Opgjort over- eller underdækning per 31. december 2010",-7825913,"kr."]
[null,"Heraf beløb indregnet i prislofterne for 2011 - 2014",-3011889.5079365079,"kr."]
[null,"Endnu ikke indregnet over- eller underdækning",{"$f":"C7-C8","v":-4814023.4920634925},"kr."]
[null,"Resterende indregningsperiode (fastsat i prisloftet for 2012)",6,"år"]
[null,"Tillæg/fradrag i alt",{"$f":"IF(C7=0,0,C9/C10)","v":-802337.24867724872},"kr."]

{"sheet":"13. Kontrol med indtægtsrammen","index":12,"n_rows":38,"n_cols":12,"rows_kept":38,"cut":false,"hidden":false,"merged":[[3,1,3,5],[30,1,30,4],[5,1,5,5]]}
[{"$f":"'12. Over- eller underdækning'!A1","v":"Langeland Spildevand A/S"}]
[]
[]
[null,"Fane 13. Korrektion for overholdelse af indtægtsrammen i prisloftet for 2013"]
[]
[null,"Samlet opgørelse vedrørende overholdelse af indtægtsrammen i prisloftet for 2013"]
[null,"Indtægtsramme i prisloftet for 2013",null,null,31863471.177561447,"kr."]
[null,"Ikke anvendt likviditet vedrørende investeringer i 2013"]
[null,"Tillæg for historiske investeringer ",13481548.283570988,"kr."]
[null,"Tillæg for gennemførte investeringer i 2011",293054,"kr."]
[null,"Korrektion af tillæg for planlagte investeringer i 2011",-171080,"kr."]
[null,"Tillæg for planlagte investeringer i 2012 og 2013",1021827,"kr."]
[null,"Indtægter fra tilslutningsbidrag",4342384,"kr."]
[null,"Indtægter fra salg af anlægsaktiver",0,"kr."]
[null,"Erstatninger vedr. anlægsaktiver mv.",0,"kr."]
[null,"Ekstraordinær effektiviseringsgevinst anvendt til investeringer",{"$f":"E35","v":1078744},"kr."]
[null,"Udgifter til investeringer",-18040128,"kr."]
[null,"Ikke anvendt likviditet vedr. investeringer i alt",{"$f":"SUM(C9:C17)","v":2006349.28357099},"kr.",{"$f":"IF(C18<0,0,-C18)","v":-2006349.28357099},"kr."]
[null,"Ekstraordinære effektiviseringsgevinster anvendt til takstnedsættelse"]
[null,"Ekstraordinær effektiviseringsgevinst anvendt til takstnedsættelse",0,"kr.",{"$f":"-C20","v":0},"kr."]
[null,"Korrektion af ikke opkrævet tillæg fra 2011 i prisloft 2013"]
[null,"Korrektion af ikke opkrævet tillæg fra 2011 i prisloft 2013",0,"kr.",{"$f":"-C22","v":0},"kr."]
[null,"Indtægter fra primære aktiviteter mv."]
[null,"Indtægter fra kubikmetertakster, faste takster, særbidrag, målergebyrer samt andre takster og gebyrer",25942042,"kr."]
[null,"Andre indtægter i prisloftåret, som selskabet har opnået i forbindelse med eller som følge af selskabets primære aktiviteter",39904,"kr."]
[null,"Indtægter fra primære aktiviteter mv. i alt",{"$f":"SUM(C24:C25)","v":25981946},"kr.",{"$f":"-C26","v":-25981946},"kr."]
[null,"Tillæg/fradrag i prisloftet for 2015 i alt",null,null,{"$f":"E7+E18+E20+E22+E26","v":3875175.8939904571},"kr."]
[]
[]
[]
[null,"Oversigt over ekstraordinære effektiviseringsgevinster"]
[]
[null,null,2012,null,2013,null,2014,null,2015,null,2016]
[null,"Indhentet ekstraordinær effektiviseringsgevinst",0,"kr.",1078744,"kr.",null,"kr.",null,"kr.",null,"kr."]
[null,"Gevinst anvendt til investeringer",0,"kr.",1078744,"kr.",null,"kr.",null,"kr.",null,"kr."]
[null,"Gevinst anvendt til takstnedsættelse",0,"kr.",0,"kr.",null,"kr.",null,"kr.",null,"kr."]
[null,"Korrektion for  effektiviseringsgevinst der ikke er anvendt inden 4 år",0,"kr.",0,"kr.",null,"kr.",null,"kr.",{"$f":"IF(C38>SUM(C35:I36),C38-SUM(E35:I36),0)*-1","v":0},"kr."]
[null,"Resterende gevinst",{"$f":"C34-C35-C36","v":0},"kr.",{"$f":"C38+E34-E35-E36","v":0},"kr.",{"$f":"E38+G34-G35-G36","v":0},"kr.",{"$f":"G38+I34-I35-I36","v":0},"kr.",{"$f":"K34-K35-K36+K37","v":0},"kr."]